[Event "SVK ECo-C Extraliga 2021-22"]
[Site "Slovakia"]
[Date "2022.05.07"]
[Round "7.3"]
[White "Ponizil, Cyril"]
[Black "Haring, Viktor"]
[Result "1-0"]
[ECO "B33"]
[WhiteElo "2490"]
[BlackElo "2259"]
[Annotator "TA"]
[PlyCount "61"]
[EventDate "2021.10.21"]
[EventType "team-tourn"]
[EventCountry "SVK"]
[SourceTitle "playchess.com"]
[Source "ChessBase"]
[SourceQuality "1"]
[TimeControl "40/5400+30:1800+30"]

{[%evp 24,61,17,6,10,10,10,12,19,12,17,0,18,18,44,42,57,56,56,57,57,57,93,88,89,0,0,0,0,0,28,28,56,45,52,45,45,45,266,258]} 1. e4 {[%emt 0:00:03]} c5 {[%emt 0:00:39]} 2. Nf3 {[%emt 0:00:05][%cal Bg1f3,Bf3d4,Bd4b5,Bb5a3,Ba3c2][%mdl 32]} Nc6 {[%emt 0:03:05]} 3. d4 {[%emt 0:00:12]} cxd4 {[%emt 0:00:20]} 4. Nxd4 {[%emt 0:00:06]} Nf6 {[%emt 0:00:27]} 5. Nc3 {[%emt 0:00:04]} e5 {[%emt 0:02:07]} 6. Ndb5 {[%emt 0:00:04]} d6 {[%emt 0:00:26]} 7. Bg5 {[%emt 0:00:04]} a6 {[%emt 0:01:20]} 8. Na3 {[%emt 0:00:05]} b5 {[%emt 0:00:25][%cal Bb7b5,Bb5b4][%mdl 32]} 9. Nd5 {[%emt 0:00:06]} Be7 {[%emt 0:02:21]} 10. Bxf6 {[%emt 0:00:21]} Bxf6 {[%emt 0:00:13]} 11. c4 b4 {[%emt 0:06:36]} 12. Nc2 {[%emt 0:00:22]} Rb8 {[%emt 0:00:35]} 13. Be2 {[%emt 0:00:17]} Bg5 {[%emt 0:02:23] B33: Sicilian: Pelikan and Sveshnikov Variations.} 14. O-O {[%emt 0:00:26]} O-O {[%emt 0:03:17]} 15. Qd3 {[%emt 0:00:14] The main line 15.Qd3 scores better than 15.b3.} Be6 {[%emt 0:09:49] The position is equal.} 16. Bf3 {[%emt 0:00:46] [#]} Qd7 $146 {[%emt 0:12:21]} ({Predecessor:} 16... a5 17. Rfd1 Qd7 18. b3 Qa7 19. a3 {½-½ (19) Huerga Leache,M (2446)-Alsina Leal,D (2548) Tossa de Mar 2010}) 17. Rad1 {[%emt 0:00:58]} Bd8 {[%emt 0:04:37]} 18. Nde3 {[%emt 0:01:18]} Bb6 {[%emt 0:02:18]} 19. Qxd6 {[%emt 0:02:03]} Qxd6 {[%emt 0:11:00]} 20. Rxd6 {[%emt 0:00:05]} Nd4 {[%emt 0:16:58]} 21. Nxd4 {[%emt 0:00:59]} Bxd4 {[%emt 0:01:12]} 22. b3 {[%emt 0:00:34]} a5 {[%emt 0:02:52][%cal Ba6a5,Ba5a4][%mdl 32]} 23. Rd1 {[%emt 0:01:58]} a4 {[%emt 0:02:31]} 24. R6xd4 {[%emt 0:01:34]} (24. h3 $16) 24... exd4 $11 {[%emt 0:00:10]} 25. Rxd4 {[%emt 0:00:05]} Rfd8 {[%emt 0:04:41]} 26. Nd5 {[%emt 0:00:06]} Kf8 {[%emt 0:02:59]} 27. Bd1 {[%emt 0:01:17]} axb3 {[%emt 0:02:26]} 28. Bxb3 {[%emt 0:02:20]} f6 {[%emt 0:04:39]} 29. f4 {[%emt 0:00:17]} Rbc8 {[%emt 0:01:34]} 30. Kf2 {[%emt 0:02:13]} Rc5 $2 {[%emt 0:00:02] [#]} (30... f5 $14) 31. Nc7 $1 {[%emt 0:01:58][%mdl 512] Weighted Error Value: White=0.08 (flawless) /Black=0.36} 1-0

[Event "SVK ECo-C Extraliga 2021-22"]
[Site "Slovakia"]
[Date "2022.05.07"]
[Round "7.3"]
[White "Malinovsky, Karel"]
[Black "Mrva, Martin"]
[Result "1/2-1/2"]
[ECO "B00"]
[WhiteElo "2473"]
[BlackElo "2383"]
[Annotator "TA"]
[PlyCount "148"]
[EventDate "2021.10.21"]
[EventType "team-tourn"]
[EventCountry "SVK"]
[SourceTitle "playchess.com"]
[Source "ChessBase"]
[SourceQuality "1"]
[TimeControl "40/5400+30:1800+30"]

{[%evp 9,148,12,62,12,51,29,31,19,27,4,56,0,12,3,0,0,0,-9,0,0,2,0,-20,-29,-8,-12,-12,-18,0,-114,-110,-112,-102,-107,-91,-105,-98,-133,-129,-168,-161,-148,-128,-107,-97,-80,-64,-118,-9,-90,22,-136,-128,-202,-118,-112,-110,-211,-195,-191,-139,-137,-108,-170,-157,-207,-215,-181,-140,-95,-107,-182,-175,-183,-170,-265,-137,-286,-286,-253,-70,-85,-43,-162,0,0,0,0,0,-3,-3,-14,0,0,0,-670,0,0,0,-10,-10,-14,0,0,0,-95,0,0,0,-7,-30,-556,-561,-460,-485,-519,-418,-410,-409,-409,-381,-402,-395,-389,-222,-197,-220,-205,0,0,0,0,0,0,0,0,0,0,0,0,0]} 1. e4 {[%emt 0:00:04]} d6 {[%emt 0:00:40]} 2. d4 {[%emt 0:00:15]} a6 {[%emt 0:00:25]} 3. f4 {[%emt 0:01:30]} c5 {[%emt 0:03:05]} 4. Nf3 {[%emt 0:03:33]} cxd4 {[%emt 0:06:48]} 5. Nxd4 {[%emt 0:00:28]} Qc7 {[%emt 0:07:39]} (5... e5 $11 6. Nf3 Nc6) 6. Nc3 {[%emt 0:02:11] White is more active. B07: Pirc Defence: Miscellaneous Systems.} (6. c4 $14) 6... e6 {[%emt 0:01:12]} 7. Be2 {[%emt 0:02:56]} b5 {[%emt 0:10:08]} 8. a3 {[%emt 0:05:30] White is slightly better.} Bb7 {[%emt 0:09:47]} 9. O-O {[%emt 0:05:30]} Nc6 {[%emt 0:11:50]} (9... Nf6 $11) 10. Nb3 {[%emt 0:14:16]} Nf6 {[%emt 0:03:08]} 11. Bf3 {[%emt 0:02:31]} Be7 {[%emt 0:04:01]} 12. Qe2 {[%emt 0:03:05]} O-O {[%emt 0:01:22]} 13. g4 {[%emt 0:06:12][%cal Bg2g4,Bg4g5][%mdl 32]} Rfe8 {[%emt 0:03:38][%cal Od6d5] [#]} 14. g5 $146 {[%emt 0:02:49]} ({Predecessor:} 14. Be3 Nd7 15. Qf2 Rac8 16. g5 Bf8 17. Bg2 Ba8 18. Rad1 Rb8 19. Ne2 a5 20. Nbd4 Nxd4 21. Bxd4 {1-0 (44) Gunnarsson,J (2315)-Astrom,R (2455) Hafnarfjordur 1997}) 14... Nd7 {[%emt 0:00:07]} 15. Be3 {[%emt 0:00:38]} Nb6 {[%emt 0:09:13]} 16. Rad1 {[%emt 0:00:10]} Na4 {[%emt 0:03:16]} 17. Nxa4 {[%emt 0:08:25]} bxa4 {[%emt 0:00:06]} 18. Nd2 {[%emt 0:02:29]} e5 {[%emt 0:01:55]} 19. c3 {[%emt 0:13:05]} (19. f5 $11 {keeps the balance.}) 19... exf4 $17 {[%emt 0:00:41]} 20. Bxf4 {[%emt 0:00:07]} Ne5 {[%emt 0:00:07] Against Nc4} 21. Bg2 {[%emt 0:04:13]} Bc6 {[%emt 0:01:54]} 22. Qf2 {[%emt 0:08:48]} Bd8 {[%emt 0:03:11]} 23. Rb1 {[%emt 0:06:23]} Qb7 {[%emt 0:02:11]} 24. Qg3 {[%emt 0:02:49]} Bb5 {[%emt 0:01:49]} 25. Rfd1 {[%emt 0:02:40]} Bb6+ {[%emt 0:01:37]} 26. Kh1 {[%emt 0:00:50]} Qa7 {[%emt 0:01:25]} 27. Bxe5 {[%emt 0:01:14]} dxe5 {[%emt 0:03:43]} (27... Rxe5 28. Nf3 $11) 28. Nf3 {[%emt 0:00:28]} (28. Bf1 $15) 28... Bc4 {[%emt 0:00:50] A strong pair of Bishops.} ({Black should play} 28... Bf2 $17 29. Qg4 Be2) 29. Bh3 {[%emt 0:01:03]} (29. Nxe5 $11 Bc7 30. Nc6) 29... Re7 {[%emt 0:01:38]} (29... Bf2 $17 30. Qg2 Bb5) 30. Bf1 $2 {[%emt 0:00:32]} ({White has to play} 30. Nxe5 $11 Bb5 31. Ng4) 30... Bb3 {[%emt 0:00:43]} 31. Qg4 {[%emt 0:00:41]} Qb7 {[%emt 0:01:08]} (31... Bxd1 $19 32. Rxd1 Be3) 32. Re1 {[%emt 0:00:27]} Rd8 {[%emt 0:00:19]} 33. Nh4 {[%emt 0:00:25]} (33. Qg2 $17 {was called for.}) 33... g6 {[%emt 0:00:31]} 34. Qe2 {[%emt 0:00:33] Prevents Bf2.} Red7 {[%emt 0:01:07]} (34... Qa7 $19 35. Nf3 Bf2) 35. Nf3 {[%emt 0:00:07]} Rd6 {[%emt 0:01:04]} 36. Rbc1 {[%emt 0:00:48]} (36. Qxa6 $17 Qc7 37. Qe2) 36... Qc7 {[%emt 0:00:45]} 37. h4 {[%emt 0:00:25]} (37. Qg2 $17) 37... Qc5 $19 {[%emt 0:00:11][%cal Od6d2]} 38. Qh2 {[%emt 0:00:39] Inhibits Rd2.} Bd1 $36 {[%emt 0:00:47][%mdl 2048] White is under strong pressure.} 39. Be2 {[%emt 0:00:32]} Bxe2 {[%emt 0:00:52]} 40. Qxe2 {[%emt 0:00:30]} (40. Rxe2 $17 Rd1+ 41. Rxd1 Rxd1+ 42. Ne1) 40... Qc8 {[%emt 0:01:03]} 41. Qg2 {[%emt 0:05:18] Against Qh3+} (41. Qh2 f5 42. Qg2 f4 $17) 41... Rd3 {[%emt 0:00:51]} 42. Rc2 {[%emt 0:07:22] [#]} (42. Rb1 $142) 42... Qe6 {[%emt 0:09:49]} (42... Re3 $1 $19 {...Rdd3 is the strong threat.} 43. Rce2 (43. Rxe3 $2 Bxe3 44. Re2 Rd1+ 45. Ne1 Bf4 $19) 43... Rxe2 44. Rxe2 Rd3) 43. Rd2 {[%emt 0:04:48] [#]} (43. Rce2 $17) 43... Rxd2 $1 {[%emt 0:01:33]} 44. Nxd2 {[%emt 0:00:06]} f5 $2 {[%emt 0:00:24]} (44... Rd3 $19 {( -> ...Rh3+)} 45. Nf3 Be3) 45. Qe2 {[%emt 0:08:30]} f4 {[%emt 0:00:09]} 46. Qc4 {[%emt 0:00:26]} (46. Kh2 $1 $15) 46... Kf7 $2 {[%emt 0:00:07]} (46... Qxc4 $19 47. Nxc4 Bf2) 47. Re2 $11 {[%emt 0:01:56]} (47. Nf3 Ke7 48. Qxe6+ (48. Qb4+ Ke8 $17) 48... Kxe6 $15) 47... Ke7 {[%emt 0:01:59]} 48. Qxe6+ {[%emt 0:00:36]} Kxe6 {[%emt 0:00:04][%mdl 4096] Endgame KRB-KRN} 49. Kg2 {[%emt 0:01:04]} Rd3 {[%emt 0:02:40] White must now prevent ...Rg3+.} 50. Nf3 {[%emt 0:00:21]} Be3 {[%emt 0:00:15]} 51. Ne1 {[%emt 0:00:41]} Rd1 {[%emt 0:00:25]} 52. Nc2 $2 {[%emt 0:02:11][%mdl 8192]} (52. Kh3 $11) 52... Bc5 $2 {[%emt 0:02:59]} ({Black should try} 52... Rg1+ $19 53. Kh2 f3 54. Rxe3 f2) 53. Ne1 {[%emt 0:00:39]} Kd6 {[%emt 0:00:39]} 54. Kf3 {[%emt 0:01:08]} Kc6 {[%emt 0:00:37] Hoping for ...Kb5.} 55. Kg2 {[%emt 0:00:25]} Kd6 {[%emt 0:02:20]} 56. Nf3 {[%emt 0:00:20]} Be3 {[%emt 0:00:10]} 57. Rc2 {[%emt 0:01:01]} (57. Kh3 $11 {remains equal.}) 57... Rc1 {[%emt 0:01:30]} (57... Rb1 $17) 58. Re2 {[%emt 0:00:35]} ({Don't blunder} 58. Rxc1 $2 Bxc1 59. Kf2 Bxb2 $19) 58... a5 {[%emt 0:00:43]} 59. Ne1 {[%emt 0:00:36]} Rb1 {[%emt 0:00:48] Strongly threatening ...Kc5.} 60. Nd3 {[%emt 0:00:27][%mdl 8192]} (60. Kf3 $11 {and White is okay.}) 60... Rg1+ $19 {[%emt 0:01:10]} 61. Kh2 {[%emt 0:01:12][%cal Oe2e3]} Rg4 {[%emt 0:00:09]} 62. Kh3 {[%emt 0:00:27]} Rg3+ {[%emt 0:00:18]} 63. Kh2 {[%emt 0:00:02]} Bg1+ {[%emt 0:05:27]} 64. Kh1 {[%emt 0:00:01]} f3 {[%emt 0:00:53]} ({Avoid the trap} 64... Rxd3 $2 65. Kxg1 Kc5 66. Kf1 $19) 65. Rd2 {[%emt 0:02:04]} Be3 {[%emt 0:00:07]} 66. Kh2 {[%emt 0:00:04]} Rg4 {[%emt 0:00:10]} (66... Rxg5 $142 67. Rf2 Bxf2 68. hxg5 Bh4) 67. Rd1 {[%emt 0:00:17] aiming for Nf2+.} Ke6 {[%emt 0:02:26] And now ...f2 would win.} (67... Rxe4 $2 68. Nf2+ Rd4 69. Ne4+ Kd5 70. Nf6+ Kc4 71. cxd4 $18) ({Inferior is} 67... Rxh4+ 68. Kg3 Bxg5 69. Ne1+ Ke6 70. Nxf3 $11) 68. Kh3 {[%emt 0:00:10]} Rg2 $2 {[%emt 0:01:37]} ({Better is} 68... Rxe4 $19 {Threatens to win with ...Kf5.} 69. Rf1 f2 70. Nxf2 Rf4) 69. Re1 $11 {[%emt 0:00:51] The position is equal.} Bf4 {[%emt 0:04:33]} 70. Rf1 {[%emt 0:00:36]} Rg3+ {[%emt 0:01:17]} 71. Kh2 {[%emt 0:00:01]} Rg4+ {[%emt 0:01:26]} 72. Kh3 $1 {[%emt 0:00:06]} Rg3+ {[%emt 0:00:11]} 73. Kh2 {[%emt 0:00:05]} Rg4+ {[%emt 0:00:33]} 74. Kh3 $1 {[%emt 0:00:06]} Rg3+ {[%emt 0:00:08] White happily takes the draw.  Weighted Error Value: White=0.53/Black=0.37} 1/2-1/2

[Event "SVK ECo-C Extraliga 2021-22"]
[Site "Slovakia"]
[Date "2022.05.07"]
[Round "7.3"]
[White "Jurcik, Martin"]
[Black "Leniart, Arkadiusz"]
[Result "1/2-1/2"]
[ECO "C47"]
[WhiteElo "2393"]
[BlackElo "2473"]
[Annotator "TA"]
[PlyCount "41"]
[EventDate "2021.10.21"]
[EventType "team-tourn"]
[EventCountry "SVK"]
[SourceTitle "playchess.com"]
[Source "ChessBase"]
[SourceQuality "1"]
[TimeControl "40/5400+30:1800+30"]

{[%evp 24,27,13,18,17,21]} 1. e4 {[%emt 0:00:05]} e5 {[%emt 0:00:05]} 2. Nf3 {[%emt 0:00:17]} Nc6 {[%emt 0:00:05]} 3. Nc3 {[%emt 0:00:35]} Nf6 {[%emt 0:00:06]} 4. d4 {[%emt 0:00:25]} exd4 {[%emt 0:00:05]} 5. Nxd4 {[%emt 0:00:12]} Bb4 {[%emt 0:00:06]} 6. Nxc6 {[%emt 0:00:49]} bxc6 {[%emt 0:00:06]} 7. Bd3 {[%emt 0:00:25]} d5 {[%emt 0:00:13]} 8. exd5 {[%emt 0:00:34]} O-O {[%emt 0:00:17]} 9. O-O {[%emt 0:00:32]} cxd5 {[%emt 0:00:34]} 10. Bg5 {[%emt 0:00:56]} c6 {[%emt 0:00:07]} 11. Qf3 {[%emt 0:00:45]} Bd6 {[%emt 0:00:31] 11...Bd6 is setting a new trend.} 12. Rae1 {[%emt 0:01:15]} Rb8 {[%emt 0:00:56]} 13. Nd1 {[%emt 0:01:42]} Be6 {[%emt 0:15:11] C47: Scotch Four Knights and Four Knights with 4 g3.} 14. b3 {[%emt 0:08:17] [#] An interesting draw.} {Predecessor:} h6 $146 15. Bxf6 Qxf6 16. Qxf6 gxf6 17. Ne3 a5 18. Nf5 Bxf5 19. Bxf5 a4 20. g3 axb3 21. axb3 {1-0 (58) Hovhannisyan,R (2642)-Karpus,M (2311) Tornelo INT 2020} 1/2-1/2

[Event "SVK ECo-C Extraliga 2021-22"]
[Site "Slovakia"]
[Date "2022.05.07"]
[Round "7.3"]
[White "Berezjuk, Sergej"]
[Black "Straubinger, Daniel"]
[Result "1/2-1/2"]
[ECO "C47"]
[WhiteElo "2382"]
[BlackElo "2352"]
[Annotator "TA"]
[PlyCount "70"]
[EventDate "2021.10.21"]
[EventType "team-tourn"]
[EventCountry "SVK"]
[SourceTitle "playchess.com"]
[Source "ChessBase"]
[SourceQuality "1"]
[TimeControl "40/5400+30:1800+30"]

{[%evp 17,70,5,0,0,6,6,0,0,5,8,18,28,22,0,8,0,13,-19,0,0,0,0,0,-10,-10,-12,0,0,0,-13,0,-14,-8,-16,-8,-12,0,-21,-10,-12,-13,-11,-12,-14,-13,-11,0,-43,-35,-33,0,-47,0,-29,0]} 1. e4 {[%emt 0:00:04]} e5 {[%emt 0:01:04]} 2. Nf3 {[%emt 0:00:08]} Nc6 {[%emt 0:00:20]} 3. Nc3 {[%emt 0:00:05]} Nf6 {[%emt 0:00:14]} 4. d4 {[%emt 0:00:07]} exd4 {[%emt 0:02:11]} 5. Nxd4 {[%emt 0:00:03]} Bb4 {[%emt 0:01:36]} 6. Nxc6 {[%emt 0:00:07]} bxc6 {[%emt 0:00:32]} 7. Bd3 {[%emt 0:00:07]} d5 {[%emt 0:00:37]} 8. exd5 {[%emt 0:00:07]} cxd5 {[%emt 0:00:48] 8...0-0 is the fancy move.} 9. O-O {[%emt 0:00:09]} O-O {[%emt 0:01:31]} 10. h3 {[%emt 0:01:07] C47: Scotch Four Knights and Four Knights with 4 g3.} c6 {[%emt 0:00:19]} 11. Qf3 {[%emt 0:00:07]} Bd6 {[%emt 0:00:51]} 12. Bf4 {[%emt 0:01:01] The position is equal.} Rb8 {[%emt 0:00:36]} 13. b3 {[%emt 0:00:47]} Qc7 {[%emt 0:02:12]} 14. Bxd6 {[%emt 0:01:23]} Qxd6 {[%emt 0:00:11]} 15. Rfe1 {[%emt 0:00:14]} Bd7 {[%emt 0:04:56]} 16. Ne2 {[%emt 0:06:53] [#]} a5 $146 {[%emt 0:05:34]} ({Predecessor:} 16... c5 17. Rad1 Rfe8 18. Qf4 Qxf4 19. Nxf4 Rxe1+ 20. Rxe1 Kf8 21. c4 d4 22. Re5 Rc8 {½-½ (132) Brkic,A (2592)-Predke,A (2690) Tornelo INT 2021}) 17. c3 {[%emt 0:08:41]} Rfe8 {[%emt 0:24:04]} 18. Qf4 {[%emt 0:05:37]} Re5 {[%emt 0:13:43]} 19. Qd2 {[%emt 0:07:29]} c5 {[%emt 0:05:48]} 20. Bc2 {[%emt 0:11:15]} Rbe8 {[%emt 0:04:41] [#] White must now prevent ...Qe6.} 21. Ng3 $1 {[%emt 0:02:34][%cal Be2g3,Bg3f1,Bf1e3,Be3d1,Bd1b2,Bb2a4][%mdl 32]} Qc7 {[%emt 0:13:25]} 22. Rad1 {[%emt 0:05:31]} g6 {[%emt 0:02:09]} 23. Nf1 {[%emt 0:02:45]} Kg7 {[%emt 0:00:34]} 24. Re3 {[%emt 0:06:08]} Bc6 {[%emt 0:01:20][%cal Bd7c6,Bc6b7,Bb7a6][%mdl 32]} 25. Rde1 {[%emt 0:06:34]} Rxe3 {[%emt 0:01:02]} 26. Nxe3 {[%emt 0:05:40]} h6 {[%emt 0:02:28]} 27. Nd1 {[%emt 0:02:56]} Rd8 {[%emt 0:00:41]} 28. Nb2 {[%emt 0:02:13]} Bb7 {[%emt 0:01:08]} 29. Bb1 {[%emt 0:06:50]} Qc6 {[%emt 0:01:22]} 30. f3 {[%emt 0:00:39]} Qc7 {[%emt 0:02:30]} 31. Qf2 {[%emt 0:01:58]} Ba6 {[%emt 0:01:54]} 32. Na4 {[%emt 0:06:44]} Rc8 {[%emt 0:00:26]} 33. Nb2 {[%emt 0:00:52]} Rd8 {[%emt 0:00:13]} 34. Na4 {[%emt 0:01:29]} Rc8 {[%emt 0:00:05]} 35. Nb2 $1 {[%emt 0:00:52]} Rd8 {Weighted Error Value: White=0.06 (flawless) /Black=0.08 (flawless)} 1/2-1/2

[Event "SVK ECo-C Extraliga 2021-22"]
[Site "Slovakia"]
[Date "2022.05.08"]
[Round "7.3"]
[White "Varga, Lukas"]
[Black "Skreko, Igor"]
[Result "0-1"]
[ECO "B90"]
[WhiteElo "2136"]
[BlackElo "2065"]
[Annotator "TA"]
[PlyCount "58"]
[EventDate "2021.10.21"]
[EventType "team-tourn"]
[EventCountry "SVK"]
[SourceTitle "playchess.com"]
[Source "ChessBase"]
[SourceQuality "1"]
[TimeControl "40/5400+30:1800+30"]

{[%evp 23,58,26,23,0,32,44,27,27,57,52,43,46,133,58,50,44,58,47,83,75,114,98,102,24,26,20,35,-84,-102,-190,-214,-186,-168,-208,-216,-611,-604]} 1. e4 {[%emt 0:30:07]} c5 {[%emt 0:30:04]} 2. Ne2 {[%emt 0:00:04]} d6 {[%emt 0:00:09]} 3. Nbc3 {[%emt 0:00:08]} Nf6 {[%emt 0:00:18]} 4. d4 {[%emt 0:00:36]} cxd4 {[%emt 0:00:06]} 5. Nxd4 {[%emt 0:00:04]} a6 {[%emt 0:00:10]} 6. Be3 {[%emt 0:00:09]} e5 {[%emt 0:00:05]} 7. Nb3 {[%emt 0:00:06]} Be6 {[%emt 0:00:05]} 8. f3 {[%emt 0:00:08]} Be7 {[%emt 0:00:05]} 9. Qd2 {[%emt 0:00:15]} Nbd7 {[%emt 0:00:07]} 10. O-O-O {[%emt 0:03:04]} O-O {[%emt 0:02:01]} 11. g4 {[%emt 0:00:09][%cal Bg2g4,Bg4g5][%mdl 32]} b5 {[%emt 0:00:08]} 12. g5 {[%emt 0:00:05]} Nh5 $1 {[%emt 0:00:06][%mdl 4] is now more promising than 12...b4.} 13. h4 {[%emt 0:03:44] B90: Sicilian Najdorf: Unusual White 6th moves, 6 Be3 Ng4 and 6 Be3 e5.} b4 {[%emt 0:04:38]} 14. Nd5 {[%emt 0:04:40]} Bxd5 {[%emt 0:00:18] [#]} 15. Qxd5 $146 {[%emt 0:06:10] And now Na5 would win. White has an edge.} ({Predecessor:} 15. exd5 a5 16. Kb1 f5 17. gxf6 Bxf6 18. Bh3 Nb6 19. Bxb6 Qxb6 20. Rdg1 a4 21. Nc1 {0-1 (35) Maranhao,J (1923)-Caetano,R (2199) Chess.com INT 2021}) 15... a5 {[%emt 0:01:16]} 16. Bb5 {[%emt 0:03:21] Strongly threatening Qc6.} a4 {[%emt 0:12:17]} 17. Nd2 {[%emt 0:00:11]} Qc7 {[%emt 0:01:06]} (17... Nf4 $1 $14 18. Bxf4 Nb6) 18. Bxd7 {[%emt 0:04:23]} (18. Nc4 $16) 18... Qxd7 $14 {[%emt 0:01:07]} 19. Nc4 {[%emt 0:01:07][%cal Oc4e5] Hoping for Nxe5!} Qc7 {[%emt 0:05:37]} 20. Kb1 {[%emt 0:04:58]} (20. Nxd6 $2 b3 21. Qc4 Bxd6 $19) 20... Ra6 {[%emt 0:02:53]} 21. Rh2 {[%emt 0:04:40]} b3 {[%emt 0:06:17]} 22. cxb3 {[%emt 0:00:45]} axb3 {[%emt 0:00:07]} 23. a3 {[%emt 0:04:40]} (23. axb3 $16 {b4 is the strong threat.} Rb8 24. Rc2) 23... Rc8 $11 {[%emt 0:01:14]} 24. Rc1 $36 {[%emt 0:00:11][%cal Oc4e5][%mdl 2048] White is pushing.} Nf4 {[%emt 0:10:48]} 25. Qb5 {[%emt 0:01:41]} ({Of course not} 25. Bxf4 exf4 26. e5 dxe5 $15) (25. Qd1 $14 {stays ahead.} Rc6 26. Nb6 $1 (26. Bb6 Qb7 $17) 26... Rxc1+ 27. Qxc1 Qxc1+ 28. Bxc1) 25... Rc6 $17 {[%emt 0:00:18][%cal Rc6c4]} 26. Qxc6 {[%emt 0:00:39]} Qxc6 $19 {[%emt 0:00:06]} 27. Nb6 {[%emt 0:00:18] [#]} Qb5 $1 {[%emt 0:02:09] ( -> ...Qd3+)} 28. Rxc8+ {[%emt 0:00:46]} Bf8 {[%emt 0:00:01] Threatens to win with ...Qd3+. Really sharp!} 29. Nc4 $2 {[%emt 0:03:45]} (29. Bxf4 exf4 30. Nd5 (30. Nc4 $2 Qd7 $19) 30... Qf1+ 31. Rc1 Qxf3 32. Re1) 29... Qa6 {[%emt 0:01:52] Weighted Error Value: White=0.68/Black=0.14 (very precise)} 0-1